bitfinex/quotes_SOLUSD_20250718
["timestamp","ask_amount","ask_price","bid_price","bid_amount"]
[1752876248290,0.68,175.32,175.3,0.06]
[1752876248958,5.70396968,175.32,175.3,0.06]
[1752876249590,5.70352719,175.34,175.3,5.48076922]
[1752876249889,5.70352719,175.34,175.31,4.73076922]
[1752876250084,6.38352719,175.34,175.3,5.48076922]
[1752876250275,0.68,175.33,175.3,4.79076922]
[1752876250478,0.68,175.32,175.3,0.06]
[1752876250784,5.70352719,175.34,175.3,0.06]
[1752876250785,30.73076922,175.31,175.3,0.06]
[1752876251079,5.70391084,175.32,175.3,0.06]
[1752876251692,5.70360917,175.33,175.31,4.73076922]
[1752876251853,26.0,175.34,175.31,4.73076922]
[1752876252797,0.71,175.36,175.31,0.69]
[1752876253088,6.41283903,175.36,175.31,0.69]
[1752876253299,5.41076922,175.35,175.3,0.06]
[1752876253791,5.41076922,175.34,175.3,0.06]
[1752876254161,0.68,175.33,175.3,0.06]
[1752876254465,0.68,175.32,175.3,0.06]
[1752876254671,26.0,175.31,175.3,0.06]
[1752876254984,36.43495038,175.31,175.3,0.06]
[1752876255187,37.11495038,175.31,175.3,0.06]
[1752876256557,32.38418116,175.31,175.3,0.06]
[1752876256764,37.11495038,175.31,175.3,0.06]
[1752876257187,37.11495038,175.31,175.3,1e-08]
[1752876257188,32.38418116,175.31,175.3,1e-08]
[1752876257365,37.11495038,175.31,175.3,1e-08]
[1752876258486,32.38418116,175.31,175.3,1e-08]
[1752876258889,36.43755458,175.23,175.22,0.06]
[1752876259396,32.38678536,175.23,175.15,5.42076922]
[1752876259581,4.73076922,175.21,175.15,5.42076922]
[1752876259915,4.73076922,175.16,175.08,0.69]
[1752876260206,4.73076922,175.14,175.08,0.69]
[1752876260377,4.73076922,175.14,175.09,4.73076922]
[1752876260707,4.73076922,175.12,175.06,0.69]
[1752876261004,0.68,175.14,175.07,4.92076922]
[1752876261200,0.68,175.14,175.04,1.5004]
[1752876261374,4.73076922,175.12,175.06,4.73076922]
[1752876261573,4.73076922,175.1,175.04,1.5004]
[1752876261772,4.73076922,175.12,175.04,7.21335848]
[1752876262075,4.73076922,175.12,175.07,4.73076922]
[1752876262272,4.73076922,175.1,175.01,5.7139592]
[1752876262577,0.68,175.09,175.01,5.7139592]
[1752876263196,0.68,175.09,175.02,0.69]
[1752876263392,0.68,175.09,174.99,22.35911821]
[1752876263393,7.75471312,175.06,174.99,8.0731]
[1752876263576,0.68,175.06,174.99,12.97728145]
[1752876263777,8.43471312,175.06,174.99,12.97728145]
[1752876264079,44.34,175.09,175.0,0.69]
[1752876264283,50.05149852,175.09,175.04,7.75471312]
[1752876264499,0.68,175.13,175.05,0.69]
[1752876264803,0.68,175.15,175.05,2.1904]
[1752876264972,5.70971793,175.14,175.1,7.75471312]
[1752876265319,5.70971793,175.14,175.03,8.44471312]
[1752876265320,7.75471312,175.11,175.03,8.44471312]
[1752876265468,7.75471312,175.11,175.0,1.5004]
[1752876265469,7.75471312,175.07,175.01,0.69]
[1752876265819,43.84,175.11,175.01,0.69]
[1752876265979,0.68,175.09,175.01,0.69]
[1752876266172,7.75471312,175.08,175.01,0.69]
[1752876266382,8.43471312,175.09,175.04,7.75471312]
[1752876266590,7.75471312,175.09,175.04,0.69]
[1752876266788,7.75471312,175.1,175.05,7.75471312]
[1752876266983,8.43471312,175.1,175.05,0.69]
[1752876267288,0.68,175.1,175.05,0.69]
[1752876267497,8.43471312,175.1,175.05,8.44471312]
[1752876267801,0.68,175.13,175.06,8.44471312]
[1752876267992,7.75471312,175.12,175.06,8.44471312]
[1752876268196,8.43471312,175.11,175.0,21.50021913]
[1752876268401,8.43471312,175.11,175.04,0.69]
[1752876268589,0.68,175.11,175.06,7.75471312]
[1752876268797,8.43471312,175.1,175.04,6.40281162]
[1752876269101,8.43471312,175.1,175.05,7.75471312]
[1752876269271,8.43471312,175.09,175.02,0.69]
[1752876269475,7.75471312,175.07,175.0,2.1904]
[1752876269696,7.75471312,175.05,175.0,8.44471312]
[1752876269895,8.43471312,175.05,175.0,8.44471312]
[1752876270098,0.68,175.05,175.0,8.44471312]
[1752876270278,0.68,175.04,175.0,7.75471312]
[1752876270480,0.68,175.04,174.98,6.40481015]
[1752876270801,6.39246187,175.06,174.98,6.40481015]
[1752876271106,7.75471312,175.04,174.99,7.75471312]
[1752876271307,0.68,175.03,175.0,7.75471312]
[1752876271518,7.75471312,175.05,175.0,7.75471312]
[1752876271680,0.68,175.04,175.0,7.75471312]
[1752876272121,8.43471312,175.07,175.02,7.75471312]
[1752876272410,8.43471312,175.07,175.02,8.44471312]
[1752876272411,0.68,175.07,175.02,8.44471312]
[1752876272608,7.75471312,175.08,175.03,8.44471312]
[1752876272806,14.14641747,175.08,175.03,0.69]
[1752876273011,32.1578,175.11,175.04,7.75471312]
[1752876273177,0.68,175.1,175.06,7.75471312]
[1752876273613,8.43471312,175.12,175.06,0.69]
[1752876273780,7.75471312,175.11,175.06,8.44471312]
[1752876273978,0.68,175.1,175.07,7.75471312]
[1752876274379,0.68,175.1,175.06,7.75471312]
[1752876274603,7.75471312,175.08,175.01,0.69]
[1752876274783,7.75471312,175.07,175.01,0.69]
[1752876275101,8.43471312,175.07,175.02,7.75471312]
[1752876275278,8.43471312,175.06,175.01,7.75471312]
[1752876275476,0.68,175.05,174.99,0.69]
[1752876275677,0.68,175.08,175.02,7.75471312]
[1752876275891,0.68,175.08,175.03,7.75471312]
[1752876276081,0.68,175.08,175.04,7.75471312]
[1752876276585,13.46586965,175.1,175.05,7.75471312]
[1752876276905,8.43471312,175.11,175.05,0.69]
[1752876277083,8.43471312,175.11,175.06,7.75471312]
[1752876277283,0.68,175.1,175.06,7.75471312]
[1752876277491,0.68,175.09,175.05,8.44471312]
[1752876277720,8.43471312,175.09,175.03,0.69]
[1752876278017,8.43471312,175.09,175.04,7.75471312]
[1752876278329,8.43471312,175.09,175.03,0.69]
[1752876278512,0.68,175.08,175.04,7.75471312]
[1752876278694,0.68,175.07,175.03,7.75471312]
[1752876279785,13.46645147,175.08,175.01,0.69]
[1752876280120,0.68,175.06,175.02,7.75471312]
[1752876280434,0.68,175.06,175.03,7.75471312]
[1752876280782,6.39244395,175.06,175.02,7.75471312]
[1752876281583,0.68,175.06,175.03,7.75471312]
[1752876282093,5.71210061,175.07,175.03,7.75471312]
[1752876282501,14.14641253,175.08,175.04,0.69]
[1752876282700,6.39105255,175.1,175.06,7.75471312]
[1752876283110,6.39105255,175.1,175.05,0.69]
[1752876283111,9.37721312,175.13,175.08,7.75471312]
[1752876283421,10.05721312,175.13,175.08,8.44471312]
[1752876283586,0.68,175.12,175.08,7.75471312]
[1752876284410,6.39050161,175.12,175.08,7.75471312]
[1752876284724,9.18831893,175.12,175.08,7.75471312]
[1752876284936,5.71050161,175.12,175.08,7.75471312]
[1752876285132,0.68,175.11,175.08,7.75471312]
[1752876285338,0.68,175.11,175.06,0.69]
[1752876285543,13.46521473,175.12,175.04,1.6011]
[1752876285847,13.46521473,175.12,175.03,7.75471312]
[1752876285848,7.75471312,175.08,175.03,7.75471312]
[1752876286007,5.7123272,175.06,175.02,7.75471312]
[1752876286342,0.68,175.05,175.0,1.6011]
[1752876286509,0.68,175.05,175.02,7.75471312]
[1752876286899,5.7123272,175.06,175.0,1.6011]
[1752876286900,0.68,175.04,175.0,1.6011]
[1752876287129,0.68,175.04,175.0,7.75471312]
[1752876287720,0.68,175.04,175.01,7.75471312]
[1752876288024,5.71330629,175.03,175.01,7.75471312]
[1752876288219,5.71330629,175.03,174.99,0.69]
[1752876288436,6.39330629,175.03,175.01,7.75471312]
[1752876288602,5.71330629,175.03,175.01,7.75471312]
[1752876288807,5.71265352,175.05,175.01,0.69]
[1752876289111,6.39265352,175.05,175.02,7.75471312]
[1752876290025,51.05277465,175.09,174.98,0.69]
[1752876290226,0.68,175.04,174.98,7.75471312]
[1752876290533,8.43471312,175.04,174.99,7.75471312]
[1752876290731,0.68,175.03,174.99,7.75471312]
[1752876291107,6.39338279,175.03,174.99,7.75471312]
[1752876292342,6.39338279,175.03,174.97,0.69]
[1752876292742,6.39338279,175.03,174.99,7.75471312]
[1752876293038,8.43471312,175.06,175.01,7.75471312]
[1752876293352,5.71272104,175.05,175.02,7.75471312]
[1752876293509,5.71232267,175.07,175.02,0.69]
[1752876293716,6.39232267,175.07,175.03,7.75471312]
[1752876293934,0.68,175.06,175.02,0.69]
[1752876294116,0.68,175.06,175.03,7.75471312]
[1752876294526,0.68,175.06,175.0,0.69]
[1752876294706,8.43471312,175.06,175.0,0.69]
[1752876294910,8.43471312,175.06,175.02,7.75471312]
[1752876295521,5.71265352,175.05,175.02,7.75471312]
[1752876295815,0.68,175.08,175.03,7.75471312]
[1752876296016,8.43471312,175.08,175.03,8.44471312]
[1752876296236,5.71134844,175.09,175.05,7.75471312]
[1752876296535,5.71134844,175.09,175.05,8.44471312]
[1752876296735,2.3025,175.13,175.07,7.75471312]
[1752876296941,2.90779214,175.1,175.06,0.69]
[1752876297133,5.71037003,175.12,175.08,7.75471312]
[1752876297329,0.68,175.12,175.08,8.44471312]
[1752876297536,0.68,175.12,175.09,7.75471312]
[1752876297734,5.71009131,175.13,175.08,0.69]
[1752876297935,0.68,175.12,175.08,7.75471312]
[1752876298137,5.71009131,175.13,175.09,7.75471312]
[1752876298523,6.39009131,175.13,175.09,7.75471312]
[1752876298920,9.23593136,175.13,175.09,7.75471312]
[1752876300548,14.2104375,175.12,175.08,8.44471312]
[1752876300847,8.5,175.12,175.09,7.75471312]
[1752876301031,8.5,175.12,175.11,7.75471312]
[1752876301846,16.93471312,175.12,175.08,7.75471312]
[1752876302028,21.9652054,175.12,175.08,7.75471312]
[1752876302232,0.68,175.11,175.08,7.75471312]
[1752876302838,8.5,175.12,175.1,7.75471312]
[1752876303852,8.5,175.12,175.11,8.44471312]
[1752876304219,0.03,175.14,175.11,8.44471312]
[1752876304450,0.03,175.14,175.13,7.75471312]
[1752876304829,0.03,175.14,175.13,14.15475708]
[1752876306735,0.03,175.14,175.13,20.15635708]
[1752876306930,6.51621567,175.25,175.13,34.43146699]
[1752876307251,5.8061696,175.25,175.14,17.50468397]
[1752876307439,6.5161696,175.25,175.21,7.75471312]
[1752876307756,0.1,175.25,175.23,7.75471312]
[1752876308127,0.1,175.25,175.24,7.75471312]
[1752876309132,0.1,175.25,175.24,8.47471312]
[1752876310438,0.1,175.25,175.24,0.72]
[1752876310645,0.1,175.25,175.24,8.47471312]
[1752876310846,0.1,175.25,175.24,0.72]
[1752876311148,0.1,175.25,175.24,14.18117283]
[1752876312452,0.1,175.25,175.24,0.72]
[1752876312651,0.1,175.25,175.24,7.75471312]
[1752876313153,0.1,175.25,175.24,8.47471312]
[1752876313329,0.1,175.25,175.24,7.75471312]
[1752876313526,0.1,175.25,175.18,1.6277]
[1752876313527,6.51618386,175.25,175.22,7.75471312]
[1752876313727,0.71,175.24,175.21,7.75471312]
[1752876313951,0.71,175.23,175.19,43.88]
[1752876314250,0.71,175.23,175.21,7.75471312]
[1752876314456,6.1,175.24,175.22,7.75471312]
[1752876314773,6.1,175.24,175.21,7.75471312]
[1752876314987,0.71,175.23,175.2,7.75471312]
[1752876315276,0.71,175.23,175.18,0.72]
[1752876315277,0.71,175.22,175.15,5.70933343]
[1752876315451,0.71,175.22,175.16,0.72]
[1752876315661,0.71,175.22,175.18,7.75471312]
[1752876315877,0.71,175.21,175.14,51.93736236]
[1752876316045,0.71,175.21,175.16,7.75471312]
[1752876316345,0.71,175.2,175.16,7.75471312]
[1752876316750,0.71,175.2,175.17,7.75471312]
[1752876316955,0.71,175.22,175.18,7.75471312]
[1752876317169,0.71,175.21,175.15,0.72]
[1752876317357,8.46471312,175.21,175.16,7.75471312]
[1752876317667,0.71,175.2,175.16,7.75471312]
[1752876317867,0.71,175.2,175.15,0.72]
[1752876318079,7.75471312,175.21,175.14,43.88]
[1752876318080,0.71,175.19,175.14,43.88]
[1752876318371,0.71,175.19,175.16,7.75471312]
[1752876318562,0.71,175.19,175.15,7.75471312]
[1752876319264,6.4184142,175.18,175.14,52.35471312]
[1752876319452,6.4184142,175.18,175.14,51.63471312]
[1752876319971,6.4184142,175.18,175.14,44.6]
[1752876320271,0.71,175.17,175.12,7.75471312]
[1752876320497,0.71,175.16,175.12,7.75471312]
[1752876320644,0.71,175.15,175.12,7.75471312]
[1752876320848,19.9794497,175.18,175.13,7.75471312]
[1752876321074,0.71,175.17,175.13,7.75471312]
[1752876321267,6.41906599,175.16,175.1,0.72]
[1752876321470,6.41906599,175.16,175.12,7.75471312]
[1752876321846,0.71,175.15,175.12,7.75471312]
[1752876322045,0.71,175.15,175.11,7.75471312]
[1752876322277,0.71,175.14,175.11,7.75471312]
[1752876322454,14.17377911,175.16,175.11,7.75471312]
[1752876322662,0.71,175.15,175.11,7.75471312]
[1752876323482,5.70971793,175.14,175.11,7.75471312]
[1752876323681,6.41971793,175.14,175.11,7.75471312]
[1752876325379,5.70939194,175.15,175.11,7.75471312]
[1752876325545,6.41939194,175.15,175.11,7.75471312]
[1752876325749,8.46471312,175.18,175.13,7.75471312]
[1752876325969,0.71,175.18,175.14,7.75471312]
[1752876326172,0.71,175.18,175.14,8.47471312]
[1752876326552,5.70808836,175.19,175.15,8.47471312]
[1752876326755,5.70808836,175.19,175.16,8.47471312]
[1752876327059,6.41808836,175.19,175.15,7.75471312]
[1752876327745,7.75471312,175.17,175.11,0.06]
[1752876327946,0.71,175.18,175.13,7.75471312]
[1752876328168,0.71,175.17,175.13,7.75471312]
[1752876328369,0.71,175.16,175.12,7.75471312]
[1752876328675,0.71,175.15,175.12,7.75471312]
[1752876328977,19.97830926,175.19,175.11,0.06]
[1752876328978,0.71,175.14,175.11,0.06]
[1752876329892,6.41988193,175.14,175.11,7.81471312]
[1752876331076,0.71,175.13,175.11,0.06]
[1752876331596,0.71,175.12,175.11,0.06]
[1752876332493,6.42037003,175.12,175.11,0.06]
[1752876332699,5.7100228,175.14,175.11,0.06]
[1752876333100,6.4200228,175.14,175.11,0.06]
[1752876334205,5.70874008,175.17,175.11,8.53471312]
[1752876334401,8.46471312,175.16,175.11,0.06]
[1752876334701,13.46410506,175.15,175.11,0.06]
[1752876334902,14.17410506,175.15,175.11,0.06]
[1752876335304,6.41939194,175.15,175.11,0.06]
[1752876335598,0.71,175.14,175.11,0.06]
[1752876336791,6.41992038,175.14,175.11,0.06]
[1752876336993,0.66,175.13,175.11,0.06]
[1752876337388,5.70992038,175.14,175.11,0.06]
[1752876337593,5.70992038,175.14,175.11,4.81542301]
[1752876337904,5.70992038,175.14,175.11,0.06]
[1752876338206,6.36992038,175.14,175.11,0.06]
[1752876338785,0.66,175.17,175.12,4.75542301]
[1752876339010,11.12416309,175.17,175.12,5.41542301]
[1752876339193,6.36874008,175.17,175.13,4.75542301]
[1752876339681,0.66,175.17,175.13,5.41542301]
[1752876339882,5.70849064,175.18,175.14,4.75542301]
[1752876340083,0.66,175.19,175.14,4.75542301]
[1752876340298,0.66,175.21,175.17,4.75542301]
[1752876340585,0.66,175.2,175.17,4.75542301]
[1752876341917,6.36779509,175.2,175.18,4.75542301]
[1752876342120,0.66,175.24,175.19,4.75542301]
[1752876342417,0.66,175.24,175.2,4.75542301]
[1752876342711,0.66,175.23,175.2,4.75542301]
[1752876342913,5.70645971,175.24,175.2,4.75542301]
[1752876343083,5.70645971,175.24,175.21,4.75542301]
[1752876343715,5.70645971,175.24,175.22,5.41542301]
[1752876343900,0.1,175.25,175.23,4.75542301]
[1752876344287,0.1,175.25,175.22,0.66]
[1752876344496,0.1,175.25,175.24,4.75542301]
[1752876344804,5.80613409,175.25,175.23,4.75542301]
[1752876345125,5.80613409,175.25,175.23,7.73822035]
[1752876345423,0.66,175.24,175.18,0.66]
[1752876345625,7.73822035,175.23,175.18,7.73822035]
[1752876346132,0.66,175.22,175.18,7.73822035]
[1752876346317,0.66,175.21,175.18,7.73822035]
[1752876346516,0.66,175.21,175.16,0.66]
[1752876346517,20.07146932,175.25,175.19,7.73822035]
[1752876346698,0.66,175.23,175.19,7.73822035]
[1752876346897,0.66,175.22,175.18,7.73822035]
[1752876347209,0.66,175.21,175.17,7.73822035]
[1752876348121,14.10500571,175.23,175.18,7.73822035]
[1752876348298,14.10500571,175.23,175.16,0.66]
[1752876348299,0.66,175.22,175.16,0.66]
[1752876348501,0.66,175.22,175.17,7.73822035]
[1752876348804,5.70776255,175.2,175.17,7.73822035]
[1752876349918,6.36752697,175.21,175.17,8.39822035]
[1752876350235,5.70752697,175.21,175.18,7.73822035]
[1752876350824,6.36752697,175.21,175.18,7.73822035]
[1752876352031,5.70752697,175.21,175.18,7.73822035]
[1752876353106,5.70711106,175.22,175.18,8.39822035]
[1752876353310,6.36711106,175.22,175.18,8.39822035]
[1752876353502,0.66,175.21,175.18,7.73822035]
[1752876354931,5.70711106,175.22,175.18,7.73822035]
[1752876355134,6.36711106,175.22,175.18,7.73822035]
[1752876355423,6.36711106,175.22,175.19,7.73822035]
[1752876355798,5.70645971,175.24,175.21,7.73822035]
[1752876356115,6.36645971,175.24,175.2,8.39822035]
[1752876356437,0.66,175.23,175.2,7.73822035]
[1752876357004,6.36706143,175.23,175.2,7.73822035]
[1752876357901,5.70706143,175.23,175.21,7.73822035]
[1752876358118,5.70651336,175.24,175.21,8.39822035]
[1752876359519,5.70651336,175.24,175.21,7.73822035]
[1752876360934,5.70651336,175.24,175.21,8.39822035]
[1752876361443,5.80621748,175.25,175.21,8.39822035]
[1752876361621,5.80621748,175.25,175.23,7.73822035]
[1752876361622,0.1,175.25,175.23,7.73822035]
[1752876361818,0.1,175.25,175.24,7.73822035]
[1752876362135,0.1,175.25,175.24,0.66]
[1752876362335,0.1,175.25,175.24,8.39822035]
[1752876363638,0.1,175.25,175.24,14.10468006]
[1752876364221,0.1,175.25,175.24,20.70148006]
[1752876364929,0.1,175.25,175.24,17.70816895]
[1752876367124,0.03,175.28,175.24,17.70816895]
[1752876367346,0.03,175.28,175.27,4.74490924]
[1752876367549,0.03,175.28,175.27,64.60959321]
[1752876367754,0.03,175.29,175.27,66.86289321]
[1752876368058,20.1,175.3,175.28,22.19959321]
[1752876368250,20.1,175.3,175.29,5.41490924]
[1752876369276,20.1,175.3,175.29,11.11974123]
[1752876371174,20.1,175.3,175.29,27.9044252]
[1752876371545,0.03,175.32,175.3,16.78468397]
[1752876371769,0.03,175.32,175.31,52.44981848]
[1752876371970,0.03,175.32,175.31,53.11981848]
[1752876373845,0.03,175.32,175.31,58.82399964]
[1752876375420,0.03,175.32,175.31,6.37418116]
[1752876375624,0.03,175.32,175.31,47.58490924]
[1752876375794,0.69,175.32,175.31,47.58490924]
[1752876376113,0.03,175.32,175.31,48.25490924]
[1752876376321,0.03,175.32,175.31,53.9590904]
[1752876378934,0.03,175.32,175.31,58.70399964]
[1752876379431,0.03,175.35,175.31,75.48868361]
[1752876379603,0.03,175.35,175.34,10.44811444]
[1752876379803,0.03,175.35,175.34,53.20811444]
[1752876380004,0.03,175.35,175.34,53.87811444]
[1752876380203,0.03,175.35,175.34,53.85811444]
[1752876383335,0.03,175.35,175.34,11.11811444]
[1752876383509,0.03,175.35,175.34,53.77811444]
[1752876386657,0.03,175.36,175.34,53.77811444]
[1752876386940,0.03,175.36,175.35,5.41490924]
[1752876388034,0.03,175.36,175.35,11.11778919]
[1752876389234,0.03,175.38,175.35,27.90247316]
[1752876389544,0.03,175.38,175.37,4.74490924]
[1752876389907,0.03,175.38,175.37,5.41490924]
[1752876390130,0.03,175.38,175.37,11.11713881]
[1752876390526,0.03,175.38,175.37,6.37222957]
[1752876390725,0.03,175.38,175.37,11.11713881]
[1752876392740,0.1,175.4,175.37,27.90182278]
[1752876392923,0.1,175.4,175.39,4.74490924]
[1752876393417,0.1,175.4,175.39,5.41490924]
[1752876393616,0.03,175.42,175.39,10.15981848]
[1752876393821,0.03,175.42,175.41,9.48981848]
[1752876394231,0.03,175.42,175.41,10.15981848]
[1752876394638,0.03,175.42,175.41,15.86074773]
[1752876396128,0.03,175.44,175.42,16.78468397]
[1752876396328,0.03,175.44,175.43,47.22490924]
[1752876396554,0.03,175.44,175.43,47.88490924]
[1752876396729,0.03,175.44,175.43,53.58518855]
[1752876396926,0.03,175.44,175.43,48.84027931]
[1752876397133,0.03,175.44,175.43,47.22490924]
[1752876397525,0.03,175.44,175.43,52.92518855]
[1752876398631,0.03,175.44,175.43,53.58518855]
[1752876406729,0.03,175.44,175.41,32.36088911]
[1752876406956,0.68,175.43,175.42,42.26]
[1752876407154,0.68,175.43,175.42,4.74490924]
[1752876407356,0.68,175.43,175.42,47.02490924]
[1752876409666,0.03,175.44,175.42,52.7255135]
[1752876409869,0.03,175.44,175.43,4.74490924]
[1752876410173,0.03,175.44,175.43,5.40490924]
[1752876410373,0.03,175.44,175.43,11.10518855]
[1752876410560,0.03,175.44,175.43,4.74490924]
[1752876410861,0.71,175.44,175.43,46.96490924]
[1752876411672,0.71,175.44,175.4,5.70096047]
[1752876411854,0.71,175.44,175.43,4.74490924]
[1752876412054,0.71,175.44,175.43,46.94490924]
[1752876412848,0.03,175.44,175.43,46.94490924]
[1752876413056,0.03,175.44,175.43,47.60490924]
[1752876413455,0.03,175.44,175.43,47.62490924]
[1752876413960,0.03,175.44,175.43,52.66518855]
[1752876414456,0.03,175.44,175.43,46.96490924]
[1752876414891,0.03,175.44,175.43,52.66518855]
[1752876415673,0.03,175.44,175.43,46.96490924]
[1752876416975,0.71,175.44,175.43,46.96490924]
[1752876418348,0.71,175.44,175.42,0.06]
[1752876418548,6.4099544,175.44,175.42,0.06]
[1752876418744,6.4099544,175.44,175.43,42.18]
[1752876419863,11.15486364,175.44,175.42,0.06]
[1752876420049,5.42490924,175.43,175.42,0.06]
[1752876420250,0.68,175.43,175.42,0.06]
[1752876420474,32.38027931,175.43,175.42,0.06]
[1752876421278,37.12518855,175.43,175.42,0.06]
[1752876425872,32.38027931,175.43,175.42,0.06]
[1752876426083,37.12518855,175.43,175.42,1e-08]
[1752876426461,32.38027931,175.43,175.42,1e-08]
[1752876426671,37.12518855,175.43,175.42,1e-08]
[1752876430981,201.80987252,175.43,175.42,1e-08]
[1752876431184,147.9,175.42,175.34,0.06]
[1752876431388,4.74490924,175.36,175.34,0.06]
[1752876431886,0.68,175.35,175.34,0.06]
[1752876432188,6.38287995,175.35,175.34,0.06]
[1752876434392,5.70287995,175.35,175.34,0.06]
[1752876435090,6.38287995,175.35,175.34,0.06]
[1752876435461,11.12778919,175.35,175.34,0.06]
[1752876435664,4.74490924,175.33,175.3,0.06]
[1752876435865,4.74490924,175.32,175.3,0.06]
[1752876436064,5.42490924,175.32,175.3,0.06]
[1752876436264,5.42490924,175.31,175.3,0.06]
[1752876436567,11.1290904,175.31,175.3,0.06]
[1752876439703,6.38418116,175.31,175.3,0.06]
[1752876439993,11.1290904,175.31,175.3,0.06]
[1752876440372,25.38954331,175.31,175.26,0.06]
[1752876440589,10.4503922,175.27,175.26,0.06]
[1752876441279,11.1303922,175.27,175.26,0.06]
[1752876441488,6.38548296,175.27,175.26,0.06]
[1752876441804,11.1303922,175.27,175.26,0.06]
[1752876441996,6.38548296,175.27,175.26,0.06]
[1752876442701,5.70548296,175.27,175.26,0.06]
[1752876443001,5.70523698,175.28,175.26,0.06]
[1752876443786,0.68,175.27,175.26,0.06]
[1752876444798,6.38548296,175.27,175.26,0.06]
[1752876445101,5.70548296,175.27,175.26,0.06]
[1752876445596,43.91512786,175.31,175.26,5.48490924]
[1752876445974,11.1294158,175.3,175.26,0.06]
[1752876446386,0.68,175.29,175.26,0.06]
[1752876446812,5.70548296,175.27,175.26,0.06]
[1752876447185,6.38548296,175.27,175.26,0.06]
[1752876447582,11.1303922,175.27,175.26,0.06]
[1752876450496,11.01296796,175.27,175.26,0.06]
[1752876451126,11.01296796,175.27,175.24,0.2]
[1752876451288,0.68,175.26,175.24,0.2]
[1752876451613,10.33296796,175.27,175.24,0.2]
[1752876451614,5.42490924,175.25,175.24,0.2]
[1752876453114,11.13104333,175.25,175.24,0.2]
[1752876454420,5.70577859,175.27,175.24,4.94490924]
[1752876454707,26.0,175.29,175.25,5.42490924]
[1752876455085,5.70519716,175.28,175.25,5.42490924]
[1752876456783,5.70486431,175.29,175.26,5.43490924]
[1752876456983,5.70486431,175.29,175.24,0.2]
[1752876456984,5.70486431,175.29,175.27,5.43490924]
[1752876457296,5.70486431,175.29,175.27,0.69]
[1752876457503,5.70486431,175.29,175.28,4.74490924]
[1752876457806,5.70486431,175.29,175.28,5.43490924]
[1752876458207,0.03,175.31,175.28,5.43490924]
[1752876458516,0.03,175.31,175.3,4.74490924]
[1752876459400,0.03,175.31,175.3,5.43490924]
[1752876460200,0.03,175.31,175.3,0.69]
[1752876460390,0.03,175.31,175.3,5.43490924]
[1752876461389,0.03,175.31,175.3,0.69]
[1752876461585,0.03,175.31,175.3,5.43490924]
[1752876462012,0.03,175.31,175.27,0.69]
[1752876462185,0.68,175.3,175.26,4.74490924]
[1752876462385,0.68,175.3,175.27,4.74490924]
[1752876462614,0.68,175.3,175.26,4.74490924]
[1752876463127,0.68,175.3,175.25,2.3547]
[1752876463128,6.38477374,175.3,175.27,4.74490924]
[1752876463307,0.03,175.31,175.28,5.43490924]
[1752876463491,5.73428722,175.31,175.27,4.74490924]
[1752876463686,6.41428722,175.31,175.27,4.74490924]
[1752876463894,5.73428722,175.31,175.28,5.43490924]
[1752876464111,6.41428722,175.31,175.27,4.74490924]
[1752876464320,0.68,175.3,175.27,4.74490924]
[1752876464613,0.68,175.29,175.24,0.2]
[1752876464801,0.68,175.28,175.25,4.74490924]
[1752876464997,4.74490924,175.27,175.24,0.2]
[1752876465194,6.38580851,175.26,175.24,0.2]
[1752876465412,4.74490924,175.25,175.24,0.2]
[1752876465590,5.42490924,175.25,175.24,0.2]
[1752876467390,11.13104333,175.25,175.24,0.2]
[1752876467593,6.38613409,175.25,175.24,0.2]
[1752876467793,5.70613409,175.25,175.24,0.2]
[1752876468818,6.38613409,175.25,175.24,0.2]
[1752876469224,11.13104333,175.25,175.24,0.2]
[1752876472221,11.13104333,175.25,175.22,0.06]
[1752876472222,26.0,175.23,175.22,0.06]